bitfinex/quotes_SOLUSD_20251024
["timestamp","ask_amount","ask_price","bid_price","bid_amount"]
[1761306362258,2.37788739,191.37,191.34,36.46]
[1761306363769,2.37788739,191.37,191.33,0.92]
[1761306363985,2.37788739,191.37,191.34,36.46]
[1761306364288,7.60339588,191.37,191.34,36.46]
[1761306364966,0.7,191.36,191.34,36.46]
[1761306365163,2.37788739,191.36,191.34,36.46]
[1761306365367,22.88,191.34,191.33,0.2]
[1761306365588,15.6875049,191.36,191.33,0.2]
[1761306365788,15.6875049,191.36,191.33,0.92]
[1761306365993,15.6875049,191.36,191.34,36.46]
[1761306366187,23.58,191.39,191.34,37.18]
[1761306366360,0.7,191.38,191.34,38.13788739]
[1761306366580,0.7,191.38,191.34,36.46]
[1761306366893,0.7,191.38,191.34,37.18]
[1761306367279,0.7,191.38,191.34,42.40616963]
[1761306368398,22.88,191.39,191.34,41.68616963]
[1761306368599,22.88,191.39,191.35,0.72]
[1761306369494,22.88,191.38,191.35,5.94580004]
[1761306369675,22.88,191.39,191.35,7.62368743]
[1761306369871,22.88,191.39,191.36,0.72]
[1761306370090,22.88,191.39,191.37,36.46]
[1761306370594,128.55788739,191.42,191.37,36.46]
[1761306370796,0.7,191.41,191.37,36.46]
[1761306371696,2.37788739,191.41,191.37,36.46]
[1761306372190,1.67788739,191.38,191.35,15.68340434]
[1761306372392,1.67788739,191.38,191.35,36.46]
[1761306372603,0.69,191.37,191.35,36.46]
[1761306373773,25.24788739,191.38,191.35,36.46]
[1761306374179,2.36788739,191.37,191.35,36.46]
[1761306374600,0.69,191.37,191.35,36.46]
[1761306374792,29.78319064,191.38,191.35,36.46]
[1761306374993,30.47319064,191.38,191.35,36.46]
[1761306375298,0.69,191.37,191.35,36.46]
[1761306375500,24.55788739,191.38,191.35,36.46]
[1761306375680,24.55788739,191.38,191.35,37.14]
[1761306375995,22.88,191.38,191.35,37.14]
[1761306377199,25.24788739,191.38,191.35,36.46]
[1761306377682,24.55788739,191.38,191.35,36.46]
[1761306378378,24.55788739,191.38,191.35,37.14]
[1761306378578,22.88,191.38,191.35,41.68588381]
[1761306378901,22.88,191.38,191.36,0.68]
[1761306379108,22.88,191.38,191.37,36.46]
[1761306385503,25.24788739,191.38,191.37,36.46]
[1761306385703,30.47309378,191.38,191.37,36.46]
[1761306386004,30.47309378,191.38,191.33,5.42636822]
[1761306386192,0.69,191.37,191.35,36.46]
[1761306386585,2.36788739,191.37,191.35,36.46]
[1761306387108,1.67788739,191.37,191.35,36.46]
[1761306387284,30.47309378,191.38,191.35,36.46]
[1761306387807,0.69,191.37,191.35,36.46]
[1761306387983,2.36788739,191.37,191.35,36.46]
[1761306389123,0.7,191.37,191.35,36.46]
[1761306389410,2.37788739,191.37,191.33,42.52646401]
[1761306390413,1.67788739,191.36,191.33,42.52646401]
[1761306390711,1.67788739,191.36,191.33,41.86646401]
[1761306390917,2.37788739,191.36,191.33,41.86646401]
[1761306391505,1.67788739,191.36,191.33,41.86646401]
[1761306391705,2.37788739,191.36,191.33,41.86646401]
[1761306392013,1.67788739,191.36,191.33,41.86646401]
[1761306392216,22.88,191.38,191.34,0.66]
[1761306392408,24.55788739,191.38,191.34,0.66]
[1761306392821,22.88,191.38,191.35,36.44]
[1761306393021,0.6,191.38,191.36,0.66]
[1761306393216,7.50330618,191.38,191.33,0.2]
[1761306393521,1.67788739,191.37,191.33,37.3]
[1761306394131,1.67788739,191.37,191.34,0.66]
[1761306396230,5.82541879,191.38,191.34,0.66]
[1761306396404,1.67788739,191.37,191.34,0.66]
[1761306398306,1.67788739,191.37,191.34,5.8862538]
[1761306398506,1.67788739,191.37,191.35,0.66]
[1761306399215,1.67788739,191.36,191.35,0.66]
[1761306399824,1.67788739,191.36,191.33,41.86654505]
[1761306400004,1.67788739,191.36,191.34,0.66]
[1761306402615,1.67788739,191.36,191.33,36.64]
[1761306402803,1.67788739,191.36,191.33,37.34]
[1761306403004,1.67788739,191.36,191.33,36.64]
[1761306403228,1.67788739,191.36,191.34,0.7]
[1761306404818,6.90339724,191.37,191.34,0.7]
[1761306405022,1.67788739,191.37,191.34,0.7]
[1761306405727,1.67788739,191.37,191.34,37.14]
[1761306405920,1.67788739,191.37,191.35,0.7]
[1761306406715,6.90317519,191.38,191.35,0.7]
[1761306407114,1.67788739,191.38,191.35,0.7]
[1761306407423,108.52500176,191.39,191.35,0.7]
[1761306408330,110.20288915,191.39,191.35,0.7]
[1761306410325,103.9,191.39,191.35,5.92602467]
[1761306410636,110.80285882,191.39,191.35,0.7]
[1761306410818,22.88,191.37,191.36,0.7]
[1761306411022,22.88,191.37,191.36,37.14]
[1761306415413,103.3,191.39,191.36,37.14]
[1761306415739,103.3,191.39,191.37,0.7]
[1761306417853,104.97788739,191.39,191.37,0.7]
[1761306418643,103.3,191.39,191.37,0.7]
[1761306418842,103.3,191.39,191.38,36.42]
[1761306419242,103.3,191.39,191.38,37.12]
[1761306420831,105.92047147,191.39,191.38,36.42]
[1761306421628,103.3,191.39,191.38,36.42]
[1761306421829,105.92047147,191.39,191.38,36.42]
[1761306422948,105.92047147,191.39,191.37,37.12]
[1761306423125,105.92047147,191.39,191.37,0.7]
[1761306423326,105.92047147,191.39,191.38,37.12]
[1761306424045,103.3,191.39,191.38,37.12]
[1761306424750,103.3,191.45,191.38,37.12]
[1761306424953,22.88,191.42,191.39,0.7]
[1761306425157,25.50047147,191.42,191.39,0.7]
[1761306426628,2.62047147,191.41,191.38,36.42]
[1761306426828,2.62047147,191.39,191.38,36.42]
[1761306427838,0.7,191.4,191.38,36.42]
[1761306428132,2.62047147,191.39,191.38,36.42]
[1761306430357,2.62047147,191.4,191.38,37.12]
[1761306430545,2.62047147,191.4,191.38,36.42]
[1761306431157,2.62047147,191.4,191.38,37.12]
[1761306431457,22.88,191.4,191.39,0.72]
[1761306431647,2.62047147,191.42,191.39,0.72]
[1761306431957,5.22387452,191.43,191.38,42.3650747]
[1761306431958,2.62047147,191.41,191.38,42.3650747]
[1761306432155,2.62047147,191.4,191.38,36.42]
[1761306433471,2.62047147,191.4,191.38,37.14]
[1761306433670,2.62047147,191.41,191.38,37.14]
[1761306435167,2.62047147,191.41,191.38,42.36519642]
[1761306438370,28.81427154,191.42,191.38,41.64519642]
[1761306438371,22.88,191.42,191.38,41.64519642]
[1761306438679,22.88,191.42,191.39,0.72]
[1761306438868,25.50047147,191.42,191.39,0.72]
[1761306439183,25.50047147,191.42,191.38,41.64519642]
[1761306439370,26.21047147,191.42,191.38,42.36519642]
[1761306439668,22.88,191.42,191.39,0.72]
[1761306439868,22.88,191.42,191.4,36.4]
[1761306440372,2.62047147,191.44,191.41,0.72]
[1761306440560,22.88,191.43,191.42,36.4]
[1761306441070,2.62047147,191.46,191.42,37.12]
[1761306441248,2.62047147,191.46,191.42,0.72]
[1761306441450,2.62047147,191.46,191.43,37.12]
[1761306441954,30.72324827,191.47,191.43,37.12]
[1761306442155,30.72324827,191.47,191.43,41.62371101]
[1761306442347,30.72324827,191.47,191.43,42.34371101]
[1761306443072,22.88,191.47,191.44,0.72]
[1761306443264,25.50047147,191.47,191.45,36.4]
[1761306443672,26.21047147,191.47,191.45,36.4]
[1761306444080,25.50047147,191.46,191.45,36.4]
[1761306444776,2.62047147,191.49,191.45,37.12]
[1761306444961,30.72243809,191.5,191.46,0.72]
[1761306445278,22.88,191.48,191.47,36.4]
[1761306445651,22.88,191.48,191.47,37.12]
[1761306446368,19.00731937,191.51,191.47,37.12]
[1761306446554,2.62047147,191.51,191.48,0.72]
[1761306446970,41.17568112,191.52,191.48,0.72]
[1761306447177,22.88,191.5,191.49,36.4]
[1761306447568,22.88,191.5,191.49,37.12]
[1761306447969,22.88,191.5,191.49,37.1]
[1761306448168,134.73158894,191.53,191.49,37.1]
[1761306448374,22.88,191.51,191.5,0.72]
[1761306449671,103.3,191.53,191.5,0.72]
[1761306449872,103.3,191.53,191.5,5.94190434]
[1761306450368,103.3,191.53,191.51,0.67]
[1761306450568,103.3,191.53,191.52,36.38]
[1761306450767,1e-08,191.54,191.52,36.38]
[1761306450964,1e-08,191.54,191.52,37.05]
[1761306451280,1e-08,191.54,191.52,36.38]
[1761306451473,1e-08,191.54,191.52,37.05]
[1761306455984,1e-08,191.54,191.52,36.38]
[1761306459387,1e-08,191.54,191.53,0.67]
[1761306461778,1e-08,191.54,191.53,5.89111418]
[1761306463874,1e-08,191.54,191.53,8.51158565]
[1761306464274,1e-08,191.54,191.53,58.51158565]
[1761306465699,1e-08,191.54,191.53,85.57392373]
[1761306467687,1e-08,191.54,191.53,121.93392373]
[1761306467994,1e-08,191.54,191.53,121.41181232]
[1761306470597,1e-08,191.54,191.53,121.39181232]
[1761306472999,1e-08,191.54,191.53,74.17533711]
[1761306473203,1e-08,191.54,191.53,111.03744852]
[1761306473394,1e-08,191.54,191.53,110.51533711]
[1761306477504,1e-08,191.54,191.53,121.39181232]
[1761306479596,1e-08,191.54,191.53,82.43134085]
[1761306479816,1e-08,191.54,191.53,110.51533711]
[1761306481506,1e-08,191.54,191.53,70.88486564]
[1761306481715,1e-08,191.54,191.53,94.16158565]
[1761306482008,1e-08,191.54,191.53,97.54205712]
[1761306482409,1e-08,191.54,191.53,61.22205712]
[1761306482618,1e-08,191.54,191.53,97.54205712]
[1761306482825,1e-08,191.54,191.53,96.59524425]
[1761306483418,1e-08,191.54,191.53,94.92158565]
[1761306483618,1e-08,191.54,191.53,96.59524425]
[1761306486414,1e-08,191.54,191.53,93.87477278]
[1761306487136,1e-08,191.54,191.53,5.22111418]
[1761306487302,1e-08,191.54,191.53,41.54111418]
[1761306487502,1e-08,191.54,191.53,93.87477278]
[1761306488630,1e-08,191.54,191.53,91.54111418]
[1761306488810,1e-08,191.54,191.53,93.21477278]
[1761306489001,1e-08,191.54,191.53,93.87477278]
[1761306491122,1e-08,191.54,191.53,41.54111418]
[1761306491325,1e-08,191.54,191.53,43.21477278]
[1761306491938,1e-08,191.54,191.53,41.54111418]
[1761306493199,1e-08,191.54,191.53,5.22111418]
[1761306493398,0.71000001,191.54,191.48,13.0555331]
[1761306493615,1.6736586,191.53,191.49,41.54220481]
[1761306493827,1.6736586,191.5,191.44,31.3]
[1761306494138,1.6736586,191.49,191.45,36.32]
[1761306494517,0.71,191.48,191.45,36.32]
[1761306495028,1.6736586,191.47,191.46,36.32]
[1761306495334,2.3836586,191.48,191.46,36.32]
[1761306495565,0.71,191.47,191.46,36.32]
[1761306496114,1.6736586,191.48,191.46,41.54287633]
[1761306496639,1.6736586,191.48,191.46,36.32]
[1761306496839,1.6736586,191.48,191.47,36.32]
[1761306497257,17.34804925,191.49,191.47,36.32]
[1761306497421,18.05804925,191.49,191.47,36.32]
[1761306498463,17.34804925,191.49,191.47,41.54259551]
[1761306499161,15.67439065,191.49,191.48,52.3636586]
[1761306499322,0.71,191.51,191.47,41.54259551]
[1761306499521,1.6736586,191.5,191.47,41.54259551]
[1761306499722,2.3836586,191.51,191.47,41.54259551]
[1761306500236,2.3836586,191.51,191.47,42.23259551]
[1761306500548,2.3836586,191.51,191.47,41.54259551]
[1761306500740,1.6736586,191.51,191.47,42.23259551]
[1761306501138,2.3836586,191.51,191.47,41.54259551]
[1761306501527,15.67357174,191.5,191.47,5.22259551]
[1761306501732,1.6736586,191.49,191.48,36.32]
[1761306501958,2.3836586,191.49,191.46,5.22298722]
[1761306502256,2.3836586,191.49,191.44,31.3]
[1761306502257,0.71,191.48,191.47,36.32]
[1761306502462,2.3836586,191.48,191.46,36.32]
[1761306502752,1.6736586,191.47,191.46,36.32]
[1761306503135,0.71,191.48,191.46,36.32]
[1761306503136,1.6736586,191.48,191.46,36.32]
[1761306503336,0.71,191.49,191.46,36.32]
[1761306503337,2.3836586,191.49,191.46,36.32]
[1761306504146,0.71,191.48,191.46,36.32]
[1761306506339,2.3836586,191.48,191.46,36.32]
[1761306510335,1.6736586,191.48,191.46,36.32]
[1761306512260,7.57587883,191.49,191.46,36.32]
[1761306515836,0.68,191.48,191.46,36.32]
[1761306516159,2.3536586,191.48,191.46,36.32]
[1761306516354,1.6736586,191.48,191.46,36.32]
[1761306516945,1.6736586,191.47,191.46,36.32]
[1761306519075,2.3536586,191.47,191.38,122.88]
[1761306519257,1.6736586,191.45,191.41,0.72]
[1761306519465,1.6736586,191.45,191.42,36.32]
[1761306520179,24.5536586,191.44,191.42,36.32]
[1761306520753,24.5536586,191.44,191.41,0.72]
[1761306521051,29.77729594,191.44,191.42,36.32]
[1761306521349,30.47729594,191.44,191.42,36.32]
[1761306521555,1.6736586,191.43,191.42,36.32]
[1761306522880,6.89750021,191.43,191.42,36.32]
[1761306523258,6.89750021,191.43,191.41,36.32]
[1761306523977,6.89750021,191.43,191.41,36.99]
[1761306524290,6.89750021,191.43,191.41,36.32]
[1761306524779,7.59750021,191.43,191.41,36.32]
[1761306524972,6.89750021,191.43,191.41,36.32]
[1761306525479,6.89750021,191.43,191.4,36.32]
[1761306525480,2.3736586,191.42,191.4,36.32]
[1761306525665,1.6736586,191.41,191.33,5.42635806]
[1761306525869,1.6736586,191.38,191.34,36.32]
[1761306526355,1.6736586,191.38,191.34,36.99]
[1761306526561,1.6736586,191.37,191.35,36.32]
[1761306526760,1.6736586,191.38,191.34,5.89627371]
[1761306526977,1.6736586,191.38,191.35,36.99]
[1761306528263,1.6736586,191.38,191.36,0.67]
[1761306529154,22.88,191.4,191.36,0.67]
[1761306529358,1.6736586,191.39,191.36,0.67]
[1761306529560,24.5536586,191.4,191.36,0.67]
[1761306530277,24.5536586,191.4,191.36,5.89570612]
[1761306530278,22.88,191.4,191.36,5.89570612]
[1761306530483,1.6736586,191.43,191.37,51.6736586]
[1761306530652,1.6736586,191.43,191.38,38.0136586]
[1761306530985,1.6736586,191.43,191.38,38.6836586]
[1761306531186,1.6736586,191.43,191.39,0.67]
[1761306531396,1.6736586,191.43,191.4,36.34]
[1761306531862,1.6736586,191.43,191.4,37.01]
[1761306532575,1.6736586,191.42,191.4,37.01]
[1761306533482,1.6736586,191.42,191.4,36.34]
[1761306533669,1.6736586,191.41,191.4,36.34]
[1761306534186,1.6736586,191.42,191.4,36.34]
[1761306534376,1.6736586,191.42,191.4,37.01]
[1761306534682,2.3736586,191.41,191.4,36.34]
[1761306534985,2.3736586,191.41,191.36,0.67]
[1761306535170,5.2241166,191.42,191.37,36.34]
[1761306535171,1.6736586,191.39,191.37,36.34]
[1761306535690,1.6736586,191.39,191.37,37.01]
[1761306538672,1.6736586,191.4,191.37,37.01]
[1761306539070,1.6736586,191.39,191.37,37.01]
[1761306539284,1.6736586,191.39,191.37,36.34]
[1761306539667,1.6736586,191.39,191.37,37.01]
[1761306540181,5.92449858,191.41,191.37,37.01]
[1761306540485,1.6736586,191.38,191.37,37.01]
[1761306540685,1.6736586,191.39,191.37,37.01]
[1761306540878,1.6736586,191.39,191.38,36.32]
[1761306541795,1.6736586,191.39,191.37,0.67]
[1761306541966,5.92449858,191.41,191.38,36.32]
[1761306542288,1.6736586,191.4,191.38,36.32]
[1761306542500,1.6736586,191.4,191.38,36.99]
[1761306542681,2.62060731,191.4,191.38,36.99]
[1761306542868,2.62060731,191.4,191.38,0.67]
[1761306543063,2.62060731,191.4,191.38,37.01]
[1761306543873,2.62060731,191.39,191.38,37.01]
[1761306544275,2.62060731,191.39,191.38,36.34]
[1761306544473,2.62060731,191.39,191.38,37.01]
[1761306544892,2.62060731,191.39,191.38,36.34]
[1761306546289,2.62060731,191.39,191.38,37.01]
[1761306546690,2.62060731,191.4,191.38,37.01]
[1761306546898,5.22414534,191.42,191.38,36.34]
[1761306547197,2.62060731,191.41,191.39,0.67]
[1761306548474,25.50060731,191.43,191.39,0.67]
[1761306548782,13.05657251,191.48,191.41,7.84499475]
[1761306548783,10.87647521,191.48,191.41,7.84499475]
[1761306548977,2.62060731,191.46,191.42,36.99]
[1761306549494,2.62060731,191.44,191.42,36.99]
[1761306552606,2.62060731,191.45,191.42,36.99]
[1761306554276,2.62060731,191.44,191.42,36.99]
[1761306555105,2.62060731,191.45,191.42,41.54411297]
[1761306555276,2.62060731,191.45,191.43,0.67]
[1761306555684,2.62060731,191.46,191.43,0.67]
[1761306555885,2.62060731,191.45,191.43,0.67]
[1761306556698,2.62060731,191.45,191.44,36.32]
[1761306557502,2.62060731,191.45,191.44,36.99]
[1761306558701,2.62060731,191.45,191.44,36.32]
[1761306559078,5.22277217,191.47,191.44,36.32]
[1761306559278,2.62060731,191.45,191.44,36.32]
[1761306562097,2.62060731,191.45,191.43,36.99]
[1761306562403,2.62060731,191.44,191.43,36.99]
[1761306565381,2.62060731,191.44,191.41,5.22430517]
[1761306565706,2.62060731,191.44,191.42,36.32]
[1761306566529,3.33060731,191.43,191.39,0.67]
[1761306566830,2.62060731,191.41,191.4,36.32]
[1761306566991,2.62060731,191.41,191.37,5.89544535]
[1761306567199,2.62060731,191.4,191.38,36.99]
[1761306567505,2.62060731,191.4,191.38,42.21517527]
[1761306567805,2.62060731,191.4,191.39,36.99]
[1761306568511,108.52406107,191.43,191.39,36.99]
[1761306568681,2.62060731,191.42,191.39,37.0]
[1761306568985,2.62060731,191.41,191.4,0.68]
[1761306569304,2.62060731,191.42,191.4,0.68]
[1761306570003,105.92060731,191.43,191.4,0.68]
[1761306571013,2.62060731,191.42,191.4,0.68]
[1761306571617,2.62060731,191.42,191.39,41.54492327]
[1761306571918,2.62060731,191.41,191.39,37.0]
[1761306572092,2.62060731,191.41,191.4,0.68]
[1761306572413,2.62060731,191.41,191.39,36.32]
[1761306572587,2.62060731,191.4,191.39,36.32]
[1761306572989,2.62060731,191.4,191.39,0.68]
[1761306573190,2.62060731,191.4,191.39,37.0]
[1761306573408,2.62060731,191.4,191.39,36.32]
[1761306573718,5.22419849,191.42,191.39,36.32]
[1761306573897,2.62060731,191.4,191.39,36.32]
[1761306574420,2.62060731,191.4,191.39,37.0]
[1761306574604,2.62060731,191.41,191.39,37.0]
[1761306574916,2.62060731,191.41,191.4,0.68]
[1761306575417,105.92060731,191.43,191.4,0.68]
[1761306576699,2.62060731,191.42,191.4,0.68]
[1761306578406,2.62060731,191.42,191.38,5.90518645]
[1761306578724,2.62060731,191.42,191.4,36.32]
[1761306581229,2.62060731,191.42,191.41,0.68]
[1761306581606,2.62060731,191.42,191.4,37.0]
[1761306582308,108.5239114,191.43,191.4,37.0]
[1761306582516,2.62060731,191.42,191.4,37.0]
[1761306583124,2.62060731,191.42,191.41,0.68]
[1761306583304,111.14451871,191.43,191.41,0.68]
[1761306583633,111.14451871,191.43,191.4,36.32]
[1761306583802,111.14451871,191.43,191.4,37.0]
[1761306584444,111.14451871,191.43,191.41,0.68]
[1761306586136,111.14451871,191.43,191.4,36.32]
[1761306586430,111.14451871,191.43,191.4,37.0]
[1761306587329,111.14451871,191.43,191.41,0.68]
[1761306587530,2.62060731,191.42,191.4,37.0]
[1761306590333,2.62060731,191.42,191.4,37.0]
[1761306590643,111.14451871,191.43,191.4,37.0]
[1761306591849,111.14451871,191.43,191.4,36.32]
[1761306592025,108.5239114,191.43,191.41,0.68]
[1761306592224,35.93765325,191.46,191.41,0.68]
[1761306592425,2.62060731,191.45,191.41,0.68]
[1761306593458,2.62060731,191.46,191.41,3.30060731]
[1761306593637,22.88,191.45,191.41,3.30060731]
[1761306593835,2.62060731,191.46,191.42,0.68]
[1761306594037,22.88,191.45,191.43,36.3]
[1761306594540,28.10339021,191.45,191.43,36.98]
[1761306595049,28.10339021,191.45,191.43,36.3]
[1761306595262,30.72399752,191.45,191.44,0.68]
[1761306595555,22.88,191.45,191.44,0.68]
[1761306595729,2.62060731,191.49,191.44,0.68]
[1761306595927,2.62060731,191.48,191.44,0.68]
[1761306596456,25.50060731,191.48,191.44,0.68]
[1761306596658,30.72308961,191.48,191.44,0.68]
[1761306597961,114.17647521,191.52,191.44,5.90349525]
[1761306598162,25.50060731,191.49,191.44,8.52410256]
[1761306598463,25.50060731,191.49,191.45,0.68]
[1761306598749,25.50060731,191.49,191.46,36.3]
[1761306598960,22.88,191.48,191.46,36.3]
[1761306599256,22.88,191.48,191.47,0.68]
[1761306601056,2.62060731,191.49,191.47,0.68]
[1761306601243,25.50060731,191.48,191.46,36.98]
[1761306601746,22.88,191.48,191.46,36.98]
[1761306602259,30.72302819,191.49,191.47,36.98]
[1761306604341,28.10242088,191.49,191.47,36.98]
[1761306604653,22.88,191.49,191.47,36.98]
[1761306604855,103.3,191.52,191.48,0.68]
[1761306605040,104.97552425,191.52,191.48,0.68]
[1761306605358,127.85552425,191.52,191.48,0.68]
[1761306606435,133.07691228,191.52,191.48,0.68]
[1761306606636,22.88,191.52,191.49,1.67552425]
[1761306606947,22.88,191.52,191.5,36.28]
[1761306607353,22.88,191.52,191.5,36.96]
[1761306609757,28.10145751,191.52,191.5,36.96]
[1761306610057,29.77698176,191.52,191.5,36.96]
[1761306610670,0.1,191.58,191.51,0.68]
[1761306610879,0.1,191.58,191.57,51.67552425]
[1761306611163,0.79,191.58,191.55,36.54]
[1761306611333,0.79,191.58,191.52,0.66]
[1761306611334,1.67552425,191.56,191.52,36.54]
[1761306611534,1.67552425,191.54,191.52,36.54]
[1761306611760,0.68,191.57,191.51,5.88165518]
[1761306611938,0.1,191.58,191.52,0.66]
[1761306611939,1.67552425,191.56,191.52,0.66]
[1761306612141,1.67552425,191.56,191.51,5.22165518]
[1761306612343,0.68,191.55,191.51,5.22165518]
[1761306612537,2.35552425,191.56,191.52,0.66]
[1761306613343,1.67552425,191.57,191.52,5.88111553]
[1761306613656,2.45552425,191.58,191.52,7.55663978]
[1761306613864,2.45552425,191.58,191.53,0.66]
[1761306614367,2.45552425,191.58,191.53,5.88090252]
[1761306614746,1.77552425,191.58,191.54,0.66]
[1761306615355,0.1,191.58,191.54,0.66]
[1761306615867,0.1,191.58,191.54,2.33552425]
[1761306616067,0.1,191.58,191.55,2.33552425]
[1761306616248,0.1,191.58,191.55,0.66]
[1761306616448,0.1,191.58,191.56,5.88018423]
[1761306616660,0.1,191.58,191.57,0.66]
[1761306617139,0.1,191.58,191.57,2.33552425]
[1761306618143,0.1,191.58,191.57,88.89552425]
[1761306618551,0.1,191.58,191.57,94.11554826]
[1761306620469,0.1,191.58,191.57,94.09554826]
[1761306620956,0.1,191.58,191.57,57.55554826]
[1761306621147,0.1,191.58,191.57,94.09554826]
[1761306623164,0.1,191.58,191.57,96.1641575]
[1761306623864,0.1,191.58,191.57,46.1641575]
[1761306624871,0.1,191.58,191.57,44.48863325]
[1761306625176,0.1,191.58,191.57,9.6441575]
[1761306625354,0.1,191.58,191.57,6.89554826]
[1761306626059,0.1,191.58,191.57,7.55554826]
[1761306626374,0.1,191.58,191.57,5.22002401]
[1761306627356,0.1,191.58,191.57,5.88002401]
[1761306627557,0.1,191.58,191.57,5.22002401]
[1761306627558,0.78,191.58,191.57,5.22002401]
[1761306627978,0.1,191.58,191.57,5.22002401]
[1761306628668,0.1,191.58,191.56,5.22029651]
[1761306629651,0.1,191.58,191.56,5.94029651]
[1761306629861,0.1,191.58,191.56,7.61582076]
[1761306630052,0.1,191.58,191.56,6.89582076]
[1761306630963,0.1,191.58,191.56,7.61582076]
[1761306633572,0.1,191.58,191.56,5.94029651]
[1761306634247,0.1,191.58,191.57,0.72]
[1761306635172,0.1,191.58,191.55,18.99192328]
[1761306635478,0.1,191.58,191.57,5.22002401]
[1761306636475,0.1,191.58,191.56,5.22029651]
[1761306636658,0.1,191.58,191.57,1.67552425]
[1761306636861,0.1,191.58,191.57,2.39552425]
[1761306638664,0.1,191.58,191.57,7.61554826]
[1761306640177,0.1,191.58,191.57,9.70426657]
[1761306640780,0.78,191.58,191.57,5.22002401]
[1761306641479,0.78,191.58,191.52,14.7283111]
[1761306641869,0.78,191.58,191.52,15.4183111]
[1761306642056,2.45552425,191.58,191.52,15.4183111]
[1761306642258,0.66,191.57,191.52,15.4183111]
[1761306642453,0.66,191.57,191.53,5.22111418]
[1761306642682,0.66,191.57,191.53,5.91111418]
[1761306643273,0.66,191.57,191.53,7.58663843]
[1761306643473,0.66,191.57,191.53,6.89663843]
[1761306643787,0.66,191.57,191.53,7.58663843]
[1761306645578,0.66,191.57,191.55,5.22056904]
[1761306646481,0.1,191.58,191.56,2.36552425]
[1761306646987,0.1,191.58,191.56,1.67552425]
[1761306647886,0.1,191.58,191.56,6.89557248]
[1761306648092,0.1,191.58,191.56,7.58557248]
[1761306650188,0.1,191.58,191.56,6.89557248]
[1761306650784,2.33552425,191.57,191.53,50.0]
[1761306651106,1.67552425,191.54,191.46,63.05147355]
[1761306651396,1.67552425,191.49,191.44,5.22353543]
[1761306651575,1.67552425,191.49,191.42,2.36552425]
[1761306651776,1.67552425,191.49,191.43,1.67552425]
[1761306651777,0.66,191.48,191.43,1.67552425]
[1761306651977,0.66,191.48,191.42,5.91407918]
[1761306651978,0.66,191.48,191.42,7.58960343]
[1761306652182,0.66,191.48,191.42,20.64988971]
[1761306652377,0.66,191.48,191.43,2.36552425]
[1761306652703,0.66,191.48,191.44,5.22356874]
[1761306652872,0.66,191.48,191.44,5.91356874]
[1761306653386,0.66,191.48,191.45,1.67552425]
[1761306654384,0.66,191.48,191.45,6.8986375]
[1761306656606,0.66,191.48,191.45,5.22311325]
[1761306658104,38.79552425,191.5,191.45,5.91311325]
[1761306658307,0.66,191.49,191.45,5.91311325]
[1761306658693,103.3,191.51,191.46,2.36552425]
[1761306658882,103.3,191.51,191.48,1.67552425]
[1761306659202,103.3,191.51,191.47,2.36552425]
[1761306659405,0.66,191.5,191.47,2.36552425]
[1761306659987,103.3,191.51,191.47,7.58818745]
[1761306660186,103.96,191.51,191.47,5.9126632]
[1761306660395,103.96,191.51,191.47,7.58818745]
[1761306660594,103.96,191.51,191.47,6.89818745]
[1761306660799,103.3,191.51,191.49,1.67552425]
[1761306662304,103.3,191.51,191.49,2.36552425]